Cogmind - Beta 16 @@@ ROGUE MODE // 2026.01.11 @ 22:55:41 Player: C4PT41N Result: Destroyed by G-34 Mercenary with Small Laser Performance ------------- Evolutions (1) 500 Regions Visited (2) 400 Robots Destroyed (36) 180 Value Destroyed (570) 570 Prototype IDs (1) 20 Alien Tech Used (0) 0 Bonus (0) 0 TOTAL SCORE: 1670 Bonus ------- None Cogmind --------- Core Integrity 0/400 Matter 208/300 Energy 54/100 System Corruption 0% Temperature Cool (6) Movement Core (150) Ox2 Location -9/Materials Parts ------- > --- POWER (1) -------- (None) > --- PROPULSION (2) --- (None) > --- UTILITY (4) ------ Signal Interpreter Propulsion Shielding Propulsion Shielding > --- WEAPON (2) ------- Shotgun Shotgun > --- INVENTORY (5) ---- Heat Sink Heat Sink Sensor Array Seismic Detector Light Cannon Peak State ------------ > --- POWER ------------ Improved Ion Engine > --- PROPULSION ------- Aluminum Leg Aluminum Leg > --- UTILITY ---------- Structural Scanner Sensor Array Signal Interpreter ECM Suite > --- WEAPON ----------- EM Pulse Gun Improved Medium Laser > --- INVENTORY -------- Heat Sink Heat Sink Seismic Detector Light Cannon [Rating: 12] Favorites ----------- Power Improved Ion Engine Engine Improved Ion Engine Propulsion Light Treads Treads Light Treads Leg Aluminum Leg Wheel Wheel Hover Unit Improved Hover Unit Utility ECM Suite Device ECM Suite Storage Small Storage Unit Processor Signal Interpreter Protection Propulsion Shielding Weapon Light EM Pulse Cannon Energy Gun EM Pulse Gun Energy Cannon Light EM Pulse Cannon Ballistic Gun Light Assault Rifle Ballistic Cannon Light Cannon Special Weapon Mining Laser Build | -11 -10 -9 ------- Run | Yrd Mat Mat Slots Evolved 2 | . . 2 Power . | . . . Propulsion . | . . . Utility 2 | . . 2 Weapon . | . . . Parts Attached 32 | 8 13 11 Power 2 | 1 1 . Engine 2 | 1 1 . Core . | . . . Reactor . | . . . Propulsion 8 | 2 5 1 Treads 3 | . 3 . Leg 2 | . 2 . Wheel 2 | 2 . . Hover 1 | . . 1 Flight . | . . . Utility 10 | 3 2 5 Device 6 | 2 2 2 Storage 1 | 1 . . Processor 1 | . . 1 Hackware . | . . . Protection 2 | . . 2 Artifact . | . . . Weapon 12 | 2 5 5 Energy Gun 4 | . 1 3 Energy Cannon 2 | . 2 . Ballistic Gun 4 | 2 . 2 Ballistic Cannon 1 | . 1 . Launcher . | . . . Special Weapon 1 | . 1 . Impact Weapon . | . . . Slashing Weapon . | . . . Piercing Weapon . | . . . Special Melee Weapon . | . . . Unidentified Prototypes 1 | . . 1 Corrupted Parts 1 | . 1 . System Corruption 8 | . 8 . Parts Lost 10 | . 2 8 Power 1 | . . 1 Propulsion 3 | . . 3 Utility 2 | . . 2 Weapon 4 | . 2 2 Highest Loss Streak 6 | . 1 6 To Critical Strikes . | . . . Average Backups 4 | 4 4 4 Power . | . . . Propulsion . | 2 . . Utility 3 | . 3 3 Weapon . | . . . Tool/Special . | . . . Unused Backups 5 | 1 3 1 Power 1 | . 1 . Propulsion 2 | 1 1 . Utility 2 | . 1 1 Weapon . | . . . Tool/Special . | . . . Average Slot Usage (%) 97 | . 98 95 Engine 12 | . 13 10 Treads 17 | . 24 . Leg 7 | . 1 20 Wheel 1 | . 1 . Device 28 | . 27 30 Processor 3 | . . 10 Energy Gun 9 | . 4 20 Energy Cannon 8 | . 12 . Ballistic Cannon 1 | . 2 . Special Weapon 4 | . 6 . Peak Build Rating 12 | 7 10 12 Average Rating 9 | 6 8 11 On Entrance 5 | . 7 8 Avg Prop Armor Cover (%) . | . . . Naked Turns . | . . . Heaviest Build 18 | 14 18 16 Greatest Support 40 | 26 40 20 Greatest Overweight (x) 4 | . 4 2 Average Overweight (x) . | . . . Largest Inventory Capacity 8 | 8 8 5 Average Capacity 5 | 7 5 5 Most Carried 6 | 6 5 5 Average Carried 4 | 4 4 4 Final Capacity 8 | 8 5 5 Final Carried 6 | 6 5 5 Class Distribution -------------------- 74% | Mutant 25% | Infiltrator-Skirmisher Dominant Class ---------------- Mutant | -10/Materials Infiltrator-Skirmisher | -9/Materials Resources | -11 -10 -9 ----------- Run | Yrd Mat Mat Matter Collected 581 | 346 235 . Remotely . | . . . Salvage Created 1097 | 214 829 54 Parts 64 | 18 45 1 Haulers Intercepted 2 | . 2 . Recyclers Shooed . | . . . Parts Field Recycled . | . . . Retrieved Matter . | . . . Parts Self-Destructed . | . . . Prevented . | . . . Parts Restored . | . . . Kills | -11 -10 -9 ------- Run | Yrd Mat Mat Combat Hostiles Destroyed 18 | . 17 1 Guns 1 | . . 1 Cannons 15 | . 15 . AOE 2 | . 2 . Classes Destroyed 9 | 3 5 1 Worker 4 | 2 2 . Builder 2 | . 2 . Tunneler 5 | 5 . . Hauler 2 | . 2 . Recycler 2 | 1 1 . Watcher 3 | . 3 . Swarmer 9 | . 9 . Grunt 8 | . 8 . Sentry 1 | . . 1 Best Kill Streak 5 | 5 5 1 Combat Bots Only 4 | . 4 1 Max Kills in Single Turn 3 | 1 3 1 Gunslinging . | . . . Exploded 1 | . 1 . Melee . | . . . Uniques/NPCs Destroyed . | . . . Combat | -11 -10 -9 -------- Run | Yrd Mat Mat Hostile Shots Fired 248 | . 120 128 Missed 82 | . 37 45 Hits 166 | . 83 83 Projectile 166 | . 83 83 Critical Strikes 4 | . 2 2 Damage Taken 1742 | . 773 969 Core 506 | . 97 409 Absorbed by Shields . | . . . Redirected to Shielding 16 | . . 16 Regen/Repaired (Parts) 187 | . 187 . Core Remaining (%) 80 | 100 61 . Volleys Fired 92 | 20 63 9 Largest 2 | 2 2 2 Hottest 112 | 40 112 96 Shots Fired 149 | 40 93 16 Gun 74 | 40 18 16 Cannon 75 | . 75 . Launcher . | . . . Special . | . . . Kinetic 57 | 40 11 6 Thermal 3 | . . 3 Explosive . | . . . Electromagnetic 89 | . 82 7 Robot Hit Streak 10 | 4 6 10 Robot Miss Streak 4 | 4 4 2 Penetration Max . | . . . Secondary Targets . | . . . Shots Hit Robots 84 | 23 49 12 Core Hits 44 | 11 27 6 Critical Kills . | . . . Critical Parts Destroyed . | . . . Critical Strikes . | . . . Melee Attacks . | . . . Impact . | . . . Slashing . | . . . Piercing . | . . . Sneak Attacks . | . . . Combat Hostiles . | . . . Follow-up Attacks . | . . . Damage Inflicted 1760 | 252 1285 223 Guns 542 | 252 91 199 Cannons 975 | . 975 . Explosions 208 | . 208 . Melee . | . . . Ramming 35 | . 11 24 Kinetic 393 | 252 34 107 Thermal 224 | . 208 16 Explosive . | . . . Electromagnetic 1108 | . 1032 76 Impact . | . . . Slashing . | . . . Piercing . | . . . Highest Corruption 8 | . 8 . Average Corruption 8 | . 8 . Corruption Purged . | . . . Corruption Blocked . | . . . Effects 20 | . 20 . Message Errors 4 | . 4 . Matter Fused 3 | . 3 . Heat Flow Errors 3 | . 3 . Energy Discharges 2 | . 2 . Data Loss (minor) 2 | . 2 . Data Loss (major) 5 | . 5 . Weapon Failures 1 | . 1 . Overload Shots . | . . . Overflow Damage 14 | . 14 . Projectiles 14 | . 14 . Explosions . | . . . Melee . | . . . Knockbacks 2 | . 2 . Impact . | . . . Kinetic 2 | . 2 . Secondary . | . . . Self-Inflicted Damage 23 | . 20 3 Shots 1 | . 1 . Rammed 5 | . 3 2 Targets Rammed 19 | . 4 15 Kicked 13 | . . 13 Crushed 1 | . 1 . Highest Temperature 241 | . 241 48 Average Temperature 52 | . 55 16 Received Heat Transfer 678 | . 174 504 Siege Activations . | . . . Martial Activations . | . . . Shielding Activations . | . . . Robots Disrupted . | . . . Combat Hostiles . | . . . Robots Corrupted . | . . . Combat Hostiles . | . . . Parts Fried 4 | . 4 . Impact Corruptions . | . . . Robots Melted . | . . . Combat Hostiles . | . . . Parts Melted . | . . . Heat Transferred 237 | . 200 37 Parts Sabotaged . | . . . Parts Stolen . | . . . Parts Stripped . | . . . Power Chain Reactions 4 | . 4 . Alert | -11 -10 -9 ------- Run | Yrd Mat Mat Maximum Alert Level . | . . . Low Security (%) 100 | 100 100 100 Level 1 . | . . . Level 2 . | . . . Level 3 . | . . . Level 4 . | . . . Level 5 . | . . . High Security . | . . . Max Security . | . . . Peak Influence 136 | 10 136 62 Initial 50 | . . 50 Average 34 | . 49 4 Influence Increases 703 | 40 558 105 Destroy 0b10 Robot/C 360 | . 340 20 Destroy 0b10 Robot/NC 90 | 40 50 . Destroy Leader 80 | . 70 10 Successful Hack 23 | . 23 . Disable Machine 75 | . 60 15 Destroy Structure 15 | . 15 . Lose Combat Pursuer 60 | . . 60 Influence Decreases 645 | 40 438 167 Entered New Map 70 | . . 70 Time Decay 534 | 40 428 66 Lost Part 41 | . 10 31 Squads Dispatched 7 | . 5 2 Investigation 5 | . 4 1 Extermination . | . . . Reinforcement 2 | . 1 1 Assault . | . . . Garrison . | . . . Intercept . | . . . Searches Triggered . | . . . Construction Impeded . | . . . Haulers Reinforced . | . . . Active Scanning Responses . | . . . Cargo Convoy Interrupts . | . . . Stealth | -11 -10 -9 --------- Run | Yrd Mat Mat Distress Signals 5 | . 4 1 Communications Jammed . | . . . Distress Signals . | . . . Times Spotted 56 | . 40 16 Peak Tracking Total 7 | . 5 7 Tactical Retreats 14 | . 11 3 ECM-based Alert Blocks 23 | . 19 4 Traps | -11 -10 -9 ------- Run | Yrd Mat Mat Traps Triggered . | . . . Indirectly . | . . . Trap Hack Attempts . | . . . Triggered . | . . . Disarmed . | . . . Reprogrammed . | . . . Reused . | . . . Traps Extracted . | . . . Installed . | . . . Triggered . | . . . Machines | -11 -10 -9 ---------- Run | Yrd Mat Mat Machines Disabled 5 | . 4 1 Max in Single Turn 1 | . 1 1 Machines Repaired . | . . . Machines Dismantled . | . . . Machines Sabotaged . | . . . Overloaded Fab Kills . | . . . Hacking | -11 -10 -9 --------- Run | Yrd Mat Mat Machines Accessed 10 | . 9 1 Terminals 6 | . 6 . Fabricators . | . . . Repair Stations 2 | . 1 1 Recycling Units 2 | . 2 . Scanalyzers . | . . . Garrison Access . | . . . Total Hacks 31 | . 28 3 Successful 15 | . 14 1 Failed 16 | . 14 2 Catastrophic 4 | . 3 1 Database Lockouts . | . . . Manual 9 | . 9 . Terminals 17 | . 17 . Fabricators . | . . . Repair Stations 11 | . 8 3 Recycling Units 3 | . 3 . Scanalyzers . | . . . Garrison Access . | . . . Terminal Hacks 5 | . 5 . Locate Traps 2 | . 2 . Disarm Traps 1 | . 1 . Investigation Status 1 | . 1 . Zone Layout 1 | . 1 . Fabricator Hacks . | . . . Repair Station Hacks 7 | . 6 1 Scan Component 4 | . 3 1 Repair 3 | . 3 . Recycling Unit Hacks 1 | . 1 . Report Inventory 1 | . 1 . Scanalyzer . | . . . Garrison Access Hacks . | . . . Unauthorized Hacks 2 | . 2 . Terminals 2 | . 2 . Track 2 | . 2 . Fabricators . | . . . Repair Stations . | . . . Recycling Units . | . . . Scanalyzers . | . . . Garrison Access . | . . . Data Cores Recovered . | . . . Used . | . . . Hacking Detections 9 | . 8 1 Full Trace Events 7 | . 6 1 Feedback Events . | . . . Feedback Blocked . | . . . Robot Schematics Acquired . | . . . Robots Built . | . . . Authchips . | . . . Time . | . . . Total Robot Build Rating . | . . . Part Schematics Acquired . | . . . Parts Built . | . . . Authchips . | . . . Time . | . . . Total Part Build Rating . | . . . Part Studies Acquired . | . . . Parts Repaired 3 | . 3 . Time 84 | . 84 . Parts Recycled . | . . . Recycled Matter . | . . . Retrieved Matter . | . . . Retrieved Components . | . . . Parts Scanalyzed . | . . . Part Schematics Acquired . | . . . Parts Damaged . | . . . Bothacking | -11 -10 -9 ------------ Run | Yrd Mat Mat Used RIF Installer . | . . . Robots Hacked . | . . . Non-combat . | . . . Combat . | . . . Robot Hacks Applied . | . . . Relay Couplers Released . | . . . Fabnet Peak Effective % . | . . . Robots Rewired . | . . . Allies Hacked . | . . . Hacks Repelled . | . . . Allies | -11 -10 -9 -------- Run | Yrd Mat Mat Total Allies . | . . . Largest Group . | . . . Highest-Rated Group . | . . . Highest-Rated Ally . | . . . Total Orders . | . . . Ally Attacks . | . . . Total Damage . | . . . Kills . | . . . Allies Corrupted . | . . . Allies Melted . | . . . Intel | -11 -10 -9 ------- Run | Yrd Mat Mat Active Infowar (turns) 4929 | 168 3449 1312 Sensors 1292 | . . 1292 Structural 1289 | . . 1289 Seismic 3242 | 168 3074 . ECM 4737 | . 3425 1312 Robot Analysis Total . | . . . Derelict Logs Recovered . | . . . Drone Launches . | . . . Drone Recoveries . | . . . Exploration | -11 -10 -9 ------------- Run | Yrd Mat Mat Turns Passed 5161 | 248 3449 1464 Spaces Moved 1722 | 195 1337 190 Core 45 | 4 2 39 Treads 1053 | . 1053 . Legs 217 | . 106 111 Wheels 367 | 191 176 . Hover 40 | . . 40 Flight . | . . . Fastest Speed 50 | 50 90 50 Average Speed 135 | 89 147 96 Slowest Speed 250 | 90 250 150 Overloaded Moves . | . . . Propulsion Burnouts . | . . . Robots Hopped . | . . . Potential Cave-ins . | . . . Cave-ins Triggered . | . . . Exploration Rate (%) 35 | 6 88 12 Regions Visited 2 Branch Regions . Pre-discovered Areas . | . . . Known Exits Taken . | . . . Unknown Exits Taken 2 | 1 1 . Scrap Searched . | . . . Spaces Dug . | . . . Terrain Destroyed 14 | . 14 . Melee . | . . . Projectile . | . . . AOE 14 | . 14 . Terrain Rammed . | . . . Walls Destroyed . | . . . Machines Disabled . | . . . Actions | -11 -10 -9 --------- Run | Yrd Mat Mat Total 4395 | 230 2714 1451 Wait 2493 | . 1273 1220 Move 1720 | 194 1336 190 Hop . | . . . Pick Up 12 | 6 6 . Fast Attach 28 | 8 11 9 Attach 5 | . 3 2 Detach 4 | 1 1 2 Swap 4 | . 3 1 Drop 18 | 1 14 3 Fire 92 | 20 63 9 Melee . | . . . Ram 2 | . . 2 Kick 13 | . . 13 Crush 4 | . 4 . Escape Stasis . | . . . Rewire . | . . . Trap . | . . . Miscellaneous . | . . . Route ------- -11/Scrapyard -10/Materials (discovered 3 exits: *Mat x3) -9/Materials History --------- Turn | Location | Event 17 | -11/Scrapyard | Discovered new exit (range 15) 249 | -11/Scrapyard | Entered Materials 313 | -10/Materials | Build established: Mutant 487 | -10/Materials | Discovered new exit (range 7) 1120 | -10/Materials | Repaired Lgt. Treads 1152 | -10/Materials | Repaired Imp. Ion Engine 1187 | -10/Materials | Repaired Lgt. Treads 2329 | -10/Materials | Discovered new exit (range 14) 2978 | -10/Materials | Discovered new exit (range 7) 3698 | -10/Materials | Entered another Materials area 3698 | -9/Materials | Evolved 2 slots: Utility x2 3998 | -9/Materials | Build established: Infiltrator-Skirmisher 5111 | -9/Materials | Lost 6 parts (1p2n1u2w) 5128 | -9/Materials | Core integrity fell below 50% 5149 | -9/Materials | Core integrity fell below 20% 5162 | -9/Materials | Destroyed by G-34 Mercenary with Small Laser Last Messages --------------- SECURING TERMINAL." 05093_ Acquired Propulsion Shielding. 05095_ ALERT: Hostiles spotted, dispatching reinforcements to Terminal M006. 05095_ Acquired Propulsion Shielding. 05101_ Acquired Imp. Hover Unit. 05113_ ECM Suite destroyed. 05114_ Slammed into G-34 Mercenary. 05122_ Acquired EM Shotgun. 05124_ Acquired Shotgun. 05125_ Dropped Shotgun. 05127_ Acquired EM Shotgun. 05133_ Critical hit (Burn: +37). 05139_ Dropped EM Shotgun. 05145_ G-34 Mercenary misfires. 05145_ Imp. Hover Unit destroyed. 05148_ Acquired Shotgun. 05150_ Y-45 Defender misfires. 05152_ Y-45 Defender destroyed. 05155_ Acquired Shotgun. Map ----- +----------------------------------------------------+ | ?????????????????????????????????????????????????? | | ?????????????????????????????????????????????????? | | ????????????????????????????????????????????????? | | ??????????????????????????????????????????????? | | ???????????????????????????????????????????????## | | ???????????????????????????????????????????????## | | ???????????????????????????????????????????????## | | ???????????????????????????????????????????????## | | ???????????????????????????????????????????????## | | ???????????????????????????????????????????????## | | ???????????????????????????????????????????????## | | ??????????????????????????????# ?????????????## | | ??????????????????????????????# ?????????????## | | ?????????????????????????????## ## ####### | | ?????????????????????????????# ###+########## | | ?????????????????????????????? | | ?????????????????????????????? | | ??????????????????????????????? | | ???????????????????????????????? """ | | ????????????????????????????????## """ | | ????????????????????????########## ^ """ | | ????????????????????????# ### "T" | | ????????????????????????# # """ |]] | | ????????????????????????# =g #Y |]] | | ????????????????????????# %= g ]]] | | ????????????????????????#@ g # ############# | | ????????????????????????# g[# ######### | | ????????????????????????##########+#######??## !! | | ???????????????????????????# #??## !! | | ???????????????????????????# """ !! """ ##?## | | ???????????????????????????# """ """ #?## | | ???????????????????????????# """ ! """ ##?## """ | | ???????????????????????????# #??## """ | | ???????????????????????????# #??## """ | | ???????????????????????????###############??###### | | | | | | | | | | | | | | | | | | | | | | | | | | | | | | | +----------------------------------------------------+ Best States ------------- Heat Dissipation 35 Energy Generation 12 Energy Capacity 265 Matter Stores 300 Matter Capacity 300 Sight Range 16 Robot Scan Range 14 Terrain Scan Density 10 ECM Strength 1 Propulsion Shielding 33 Evasion (%) 55 Recoil Reduction 2 Item Schematics ----------------- None Robot Schematics ------------------ None Fabricated ------------ Nothing Repaired ---------- Imp. Ion Engine | 17% | -10/Materials Lgt. Treads | 7% | -10/Materials Studied --------- None Alien Tech Used ----------------- None Achievements -------------- None Challenges ------------ None Game ------ Seed CentriumShiftLegs Manual? 0 Play Time 00:30:58 Cumulative 18.6 hours Start 2026.01.11 @ 22:25:06 End 2026.01.11 @ 22:55:41 Sessions 1 Manual Loads 0 Difficulty Rogue Special Mode None Game No. 23 Rogue 23 Adventurer 0 Explorer 0 Win Type - Total 0 Types 0/0/0/0/0/0/0/0/0/0 Lore% 16 Gallery% 16 Achievement% 16 Wizard Run 0 Options --------- Layout 1 ASCII 0 Keyboard 0 Movement Arrows Keybinds 0 Fullscreen 2 Font 24/Crisp Map View 50x35 Zoom Use 0% Tactical HUD 1 Map Filters NONE Filters NONE Steam 1 RUN: 908dc97b-a7b4-4ca5-a9f3-adbeee80b331